Cogmind - Beta 17 @@@ ROGUE MODE // 2026.08.01 @ 07:20:44 Player: KURIIRI Result: Self-destructed Performance ------------- Evolutions (5) 2500 Regions Visited (13) 2600 Robots Destroyed (180) 900 Value Destroyed (6222) 6222 Prototype IDs (30) 600 Alien Tech Used (0) 0 Bonus (6376) 6376 TOTAL SCORE: 19198 Bonus ------- High Alert Combat Kills 765 Follower Combat Kills 1676 Network Hubs Disabled 400 Delivered SUBCON Basin 2000 Registered with UFD 300 Met Optimus in HQ 500 Built Enhanced Grunts 300 A7 Reached Mainframe 300 Met R17 at Cetus 500 Friendly Fire -365 Cogmind --------- Core Integrity 731/1000 Matter 54/300 Energy 239/310 System Corruption 5% Temperature Cool (0) Movement Core (550) Ox10 Location -5/Factory Parts ------- > --- POWER (1) -------- Fission Core > --- PROPULSION (6) --- (None) > --- UTILITY (7) ------ Large Storage Unit Deep Structural Scanner Enhanced Optical Array Advanced Signal Interpreter Improved Hacking Suite > --- WEAPON (3) ------- (None) > --- INVENTORY (15) --- Fusion Compressor Medium Storage Unit Matter Compressor (0) Advanced Sensor Array Advanced Sensor Array Matter Filter Centrium Medium Armor Plating Centrium Medium Armor Plating Improved System Shield Improved Proton Missile Launcher Improved Proton Missile Launcher Multitool Peak State ------------ > --- POWER ------------ Micro Fission Core > --- PROPULSION ------- Improved Gravmag System Improved Gravmag System Cooled Aerolev Unit Gravmag Array Combat Gravmag System > --- UTILITY ---------- Large Storage Unit Deep Structural Scanner Enhanced Optical Array Makeshift Sensor Array Advanced Signal Interpreter Improved Hacking Suite Improved System Shield > --- WEAPON ----------- Hypervelocity Mass Driver Hypervelocity Mass Driver Linear Accelerator > --- INVENTORY -------- Fusion Compressor Improved Gravmag System Antigrav System Medium Storage Unit Matter Compressor Advanced Sensor Array Advanced Sensor Array Matter Filter Centrium Medium Armor Plating Centrium Medium Armor Plating Improved System Shield Improved Proton Missile Launcher Improved Proton Missile Launcher Multitool [Rating: 99] Favorites ----------- Power Subdweller Power Source Engine Subdweller Power Source Power Core Fission Core Propulsion Spiked Treads Treads Spiked Treads Leg Aluminum Leg Wheel Armored Huge Wheel Hover Unit Improved Gravmag System Utility Large Storage Unit Device Improved Sensor Array Storage Large Storage Unit Processor Enhanced Optical Array Hackware Improved System Shield Protection Light Armor Plating Weapon Subdweller Beam Cannon Energy Gun Particle Gun Energy Cannon Subdweller Beam Cannon Ballistic Gun Subdweller Machine Gun Ballistic Cannon Hypervelocity Mass Driver Launcher Grenade Launcher Special Weapon Remote Datajack Slashing Weapon Makeshift Sword Build | -11 -10 -10 -10 -9 -9 -6 -6 -6 -6 -6 -6 -6 -5 ------- Run | Yrd Mat Min Sub Rec Scr Fac Was Fac Ext Cet Arc Hub Fac Slots Evolved 10 | . . . . . . 8 . . . . . . 2 Power . | . . . . . . . . . . . . . . Propulsion 4 | . . . . . . 3 . . . . . . 1 Utility 5 | . . . . . . 4 . . . . . . 1 Weapon 1 | . . . . . . 1 . . . . . . . Parts Attached 104 | 3 8 5 17 1 2 27 3 13 6 3 4 3 9 Power 17 | . 1 1 4 . . 3 . 1 2 . . 1 4 Engine 12 | . 1 1 4 . . 2 . 1 1 . . 1 1 Core 5 | . . . . . . 1 . . 1 . . . 3 Reactor . | . . . . . . . . . . . . . . Propulsion 29 | 2 1 1 6 1 1 10 . 2 . . 1 . 4 Treads 10 | 2 1 1 5 . 1 . . . . . . . . Leg . | . . . . . . . . . . . . . . Wheel 5 | . . . 1 1 . 3 . . . . . . . Hover 14 | . . . . . . 7 . 2 . . 1 . 4 Flight . | . . . . . . . . . . . . . . Utility 35 | 1 1 1 3 . 1 10 2 5 2 3 3 2 1 Device 13 | 1 . . 1 . . 4 2 1 2 . 1 . 1 Storage 4 | . 1 . 1 . . . . . . . 1 1 . Processor 5 | . . . . . 1 3 . 1 . . . . . Hackware 5 | . . . . . . 2 . 2 . . 1 . . Protection 8 | . . 1 1 . . 1 . 1 . 3 . 1 . Artifact . | . . . . . . . . . . . . . . Weapon 23 | . 5 2 4 . . 4 1 5 2 . . . . Energy Gun 2 | . 2 . . . . . . . . . . . . Energy Cannon 4 | . . . 3 . . . 1 . . . . . . Ballistic Gun 3 | . 1 1 1 . . . . . . . . . . Ballistic Cannon 7 | . 1 1 . . . . . 3 2 . . . . Launcher 4 | . 1 . . . . 1 . 2 . . . . . Special Weapon 2 | . . . . . . 2 . . . . . . . Impact Weapon . | . . . . . . . . . . . . . . Slashing Weapon 1 | . . . . . . 1 . . . . . . . Piercing Weapon . | . . . . . . . . . . . . . . Special Melee Weapon . | . . . . . . . . . . . . . . Unidentified Prototypes 8 | . . . . . . 3 1 2 . 1 1 . . Parts Lost 27 | . 3 1 3 . . 3 . 1 1 . 1 1 13 Power 8 | . 1 1 1 . . 2 . . 1 . . 1 1 Propulsion 9 | . 1 . 1 . . . . . . . 1 . 6 Utility 2 | . . . . . . . . . . . . . 2 Weapon 8 | . 1 . 1 . . 1 . 1 . . . . 4 Highest Loss Streak 12 | . 3 1 1 . . 1 . 1 1 . 1 1 12 To Critical Strikes . | . . . . . . . . . . . . . . Average Backups 13 | 6 9 13 14 10 11 13 13 14 14 14 12 14 14 Power . | 1 1 . . . . . 1 1 . . . . . Propulsion 3 | 4 3 4 4 4 4 3 . 1 2 1 . . 1 Utility 4 | . 2 5 4 3 3 4 5 5 6 7 8 8 7 Weapon 3 | 1 2 3 4 2 2 2 4 4 4 4 3 3 3 Tool/Special . | . . . . . . . . . . . . . . Unused Backups 30 | . 2 1 6 . 1 6 . 6 2 2 . . 4 Power 3 | . . . . . . . . . 2 1 . . . Propulsion 4 | . . . . . . 2 . 1 . . . . 1 Utility 13 | . . 1 3 . . 3 . 2 . 1 . . 3 Weapon 9 | . 2 . 3 . 1 . . 3 . . . . . Tool/Special 1 | . . . . . . 1 . . . . . . . Average Slot Usage (%) 89 | . 98 99 98 75 75 82 88 89 87 83 86 86 86 Engine 8 | . 13 13 13 12 12 3 1 5 . . . 2 1 Core 1 | . . . . . . 2 6 4 5 6 6 3 3 Treads 15 | . 27 28 27 12 18 5 . . . . . . . Wheel 3 | . . . . 12 5 12 . . . . . . . Hover 8 | . . . . . . 7 31 28 26 26 25 26 29 Device 4 | . 14 8 . . . 7 6 5 4 3 5 5 8 Storage 10 | . 14 14 13 12 12 6 6 6 6 6 6 6 5 Processor 7 | . . . . . 2 17 18 18 20 20 13 13 11 Hackware 2 | . . . . . . 3 6 6 6 6 12 13 10 Protection 6 | . . 6 13 12 9 1 . . 1 2 . . 1 Energy Gun 2 | . 12 14 . . . . . . . . . . . Energy Cannon 9 | . . . 25 12 12 6 6 4 . . . . . Ballistic Cannon 2 | . 9 8 . . . . . 1 5 2 6 5 8 Slashing Weapon 2 | . . . . . . 5 5 5 6 4 6 6 1 Peak Build Rating 99 | 7 9 10 42 42 27 75 81 84 83 79 86 86 99 Average Rating 39 | 6 8 9 15 35 24 63 75 78 75 73 75 72 87 On Entrance 46 | 6 7 9 9 42 24 27 74 79 76 73 73 74 71 Avg Prop Armor Cover (%) 9 | . . . 11 11 10 9 . . . . . 21 5 Naked Turns . | . . . . . . . . . . . . . . Heaviest Build 100 | 12 32 32 100 97 97 54 39 46 64 53 63 63 67 Greatest Support 71 | 40 40 40 40 20 40 50 50 50 48 47 48 56 71 Greatest Overweight (x) 11 | . 1 . 4 4 4 1 . . 1 1 1 11 2 Average Overweight (x) . | . . . 1 4 . . . . . . . . . Largest Inventory Capacity 25 | 8 15 15 25 25 25 15 15 15 15 15 15 15 15 Average Capacity 15 | 8 14 15 15 25 15 15 15 15 15 15 15 15 15 Most Carried 25 | 6 13 15 25 25 15 15 15 15 15 15 15 15 15 Average Carried 13 | 5 9 13 15 20 11 13 13 14 14 14 12 14 14 Final Capacity 25 | 8 15 15 25 25 15 15 15 15 15 15 15 15 15 Final Carried 25 | 4 13 15 25 11 15 13 15 15 15 15 13 15 12 Class Distribution -------------------- 31% | Mutant 19% | Derelict-Mutant 10% | Assassin 9% | Commander-Scout 8% | Scavenger-Mutant 7% | Scout 4% | Hacker-Scout 3% | Scientist-Scout Dominant Class ---------------- Mutant | -10/Materials Scavenger-Mutant | -10/Mines Derelict-Mutant | -10/Subcaves Mutant | -9/Recycling Mutant | -9/Scraptown Assassin | -6/Factory Scientist-Scout | -6/Waste Scout | -6/Factory Commander-Scout | -6/Extension Commander-Scout | -6/Cetus Commander-Scout | -6/Archives Hacker-Scout | -6/Hub_04(d) Hacker-Scout | -5/Factory Resources | -11 -10 -10 -10 -9 -9 -6 -6 -6 -6 -6 -6 -6 -5 ----------- Run | Yrd Mat Min Sub Rec Scr Fac Was Fac Ext Cet Arc Hub Fac Matter Collected 5148 | 254 650 342 340 10 30 708 354 312 1172 200 169 303 304 Remotely . | . . . . . . . . . . . . . . Salvage Created 7659 | 30 779 502 964 . . 1013 176 694 1924 680 226 528 143 Parts 395 | 3 48 29 77 . . 62 4 43 48 31 14 23 13 Haulers Intercepted 11 | . 2 . . . . 3 . 2 2 . . 2 . Recyclers Shooed 9 | . 3 3 . . . . . 1 . . . 1 1 Parts Field Recycled . | . . . . . . . . . . . . . . Retrieved Matter . | . . . . . . . . . . . . . . Parts Self-Destructed 18 | . . . 18 . . . . . . . . . . Prevented . | . . . . . . . . . . . . . . Parts Restored 1 | . . . 1 . . . . . . . . . . Broken 1 | . . . 1 . . . . . . . . . . Kills | -11 -10 -10 -10 -9 -9 -6 -6 -6 -6 -6 -6 -6 -5 ------- Run | Yrd Mat Min Sub Rec Scr Fac Was Fac Ext Cet Arc Hub Fac Combat Hostiles Destroyed 116 | . 16 9 26 . . 17 1 9 21 8 2 5 2 Melee 6 | . . . . . . 3 . 3 . . . . . Guns 3 | . 3 . . . . . . . . . . . . Cannons 56 | . 5 3 23 . . 1 1 1 15 . 2 3 2 AOE 41 | . 8 6 3 . . 12 . 5 3 2 . 2 . Classes Destroyed 18 | 1 8 2 2 . . 2 1 2 . . . . . Worker 9 | . 2 2 . . . 2 . . 2 . . 1 . Builder 8 | . 2 . . . . 1 . . 3 . . 1 1 Tunneler 6 | 1 . 3 . . . 1 . . 1 . . . . Hauler 11 | . 2 . . . . 3 . 2 2 . . 2 . Recycler 10 | . 3 3 . . . 1 . . 3 . . . . Mechanic 1 | . 1 . . . . . . . . . . . . Operator 8 | . . . . . . 2 . . . . 3 2 1 Watcher 12 | . 2 . . . . 4 . 2 1 2 . . 1 Swarmer 33 | . 6 . 7 . . 12 . 3 3 . . 2 . Grunt 32 | . 10 5 2 . . 2 . 1 11 . . 1 . Duelist 1 | . . . . . . . . 1 . . . . . Sentry 15 | . . 2 2 . . . . 1 6 . 2 2 . Programmer 7 | . . . . . . 3 . 2 . . . . 2 Behemoth 1 | . . . . . . . . 1 . . . . . Compactor 1 | . . . . . . . 1 . . . . . . Cetus Guard 8 | . . . . . . . . . . 8 . . . Artisan 1 | . . . 1 . . . . . . . . . . Subdweller 15 | . . . 15 . . . . . . . . . . Assembled 2 | . . 2 . . . . . . . . . . . Wasp 1 | . . . . . . . . 1 . . . . . Thug 1 | . . . . . . . . . 1 . . . . Best Kill Streak 8 | 1 8 5 4 . . 6 1 6 5 5 4 5 2 Combat Bots Only 5 | . 5 2 4 . . 4 1 5 5 4 2 3 1 Max Kills in Single Turn 4 | 1 2 3 2 . . 4 1 3 2 1 2 2 1 Gunslinging . | . . . . . . . . . . . . . . Exploded 4 | . 2 2 2 . . 4 . 3 1 1 . 2 . Melee 1 | . . . . . . 1 . 1 . . . . . Uniques/NPCs Destroyed . | . . . . . . . . . . . . . . Combat | -11 -10 -10 -10 -9 -9 -6 -6 -6 -6 -6 -6 -6 -5 -------- Run | Yrd Mat Min Sub Rec Scr Fac Was Fac Ext Cet Arc Hub Fac Hostile Shots Fired 593 | . 90 18 83 . . 30 . 59 101 14 3 22 173 Missed 196 | . 23 5 16 . . 12 . 22 30 7 . 13 68 Hits 397 | . 67 13 67 . . 18 . 37 71 7 3 9 105 Projectile 397 | . 67 13 67 . . 18 . 37 71 7 3 9 105 Critical Strikes 10 | . . 1 2 . . 1 . . 1 3 . . 2 Part Disruptions 1 | . . . . . . 1 . . . . . . . Damage Taken 5706 | . 855 233 916 . . 406 . 456 651 93 73 138 1885 Core 674 | . 108 43 74 . . . . 83 97 . . . 269 Absorbed by Shields 381 | . . . . . . . . . 292 89 . . . Regen/Repaired (Parts) 452 | . 247 . . . . . 40 . . . . . 165 Core Remaining (%) 62 | 100 . . . . 10 . . . . . . 78 . Volleys Fired 416 | 8 81 36 75 1 . 24 12 22 91 7 5 23 31 Largest 3 | 2 2 2 2 1 . 2 1 1 2 2 2 2 3 Hottest 166 | 60 95 95 160 40 . 163 40 43 112 86 112 110 166 Shots Fired 585 | 16 119 53 138 1 . 26 12 22 110 10 11 25 42 Gun 112 | 16 70 22 4 . . . . . . . . . . Cannon 406 | . 38 15 132 1 . 17 12 17 97 . 11 24 42 Launcher 63 | . 11 16 2 . . 5 . 5 13 10 . 1 . Special 4 | . . . . . . 4 . . . . . . . Kinetic 273 | 8 66 20 4 . . . . 1 97 . 11 24 42 Thermal 245 | 8 42 17 132 1 . 17 12 16 . . . . . Explosive 34 | . 11 16 2 . . 5 . . . . . . . Electromagnetic 29 | . . . . . . . . 5 13 10 . 1 . Robot Hit Streak 22 | 3 15 17 22 . . 7 5 5 9 5 3 6 4 Robot Miss Streak 5 | 2 4 2 3 1 . 2 1 1 5 . 1 2 5 Penetration Max 1 | . . . . . . . . . 1 . . 1 . Secondary Targets 1 | . 1 . . . . . . . . . . . . Max Gunslinging Chain 1 | . 1 . . . . . . . . . . . . Shots Hit Robots 389 | 6 79 25 67 . . 50 8 27 73 3 9 28 14 Core Hits 236 | 2 42 30 29 . . 28 1 19 43 17 6 14 5 Critical Kills 31 | . . . . . . 2 . . 18 . 4 4 3 Critical Parts Destroyed 33 | . . . . . . . . . 24 . 2 3 4 Critical Strikes 82 | . 2 . . . . 4 . 2 48 . 7 11 8 Burn 1 | . 1 . . . . . . . . . . . . Meltdown 2 | . . . . . . 2 . . . . . . . Destroy 69 | . . . . . . . . . 47 . 7 8 7 Blast 3 | . 1 . . . . . . . 1 . . . 1 Sever 7 | . . . . . . 2 . 2 . . . 3 . Melee Attacks 170 | . . . . . . 74 . 41 19 . 5 23 8 Impact . | . . . . . . . . . . . . . . Slashing 170 | . . . . . . 74 . 41 19 . 5 23 8 Piercing . | . . . . . . . . . . . . . . Sneak Attacks 28 | . . . . . . 10 . 5 6 . 1 4 2 Combat Hostiles 2 | . . . . . . . . 2 . . . . . Follow-up Attacks . | . . . . . . . . . . . . . . Damage Inflicted 16795 | 101 1681 969 2031 . . 3352 463 1792 3372 1192 340 1032 470 Guns 983 | 101 664 218 . . . . . . . . . . . Cannons 6482 | . 403 153 1869 . . 638 463 582 1612 . 156 356 250 Explosions 5192 | . 591 501 162 . . 1114 . 453 1078 1192 . 101 . Melee 3988 | . . . . . . 1600 . 757 682 . 184 575 190 Ramming 150 | . 23 97 . . . . . . . . . . 30 Kinetic 3382 | 65 706 195 . . . . . 42 1612 . 156 356 250 Thermal 4647 | 36 361 176 1869 . . 638 463 704 82 318 . . . Explosive 2368 | . 591 501 162 . . 1114 . . . . . . . Electromagnetic 2260 | . . . . . . . . 289 996 874 . 101 . Impact . | . . . . . . . . . . . . . . Slashing 3988 | . . . . . . 1600 . 757 682 . 184 575 190 Piercing . | . . . . . . . . . . . . . . Highest Corruption 5 | . . . . . . 1 1 2 3 3 3 . 5 Average Corruption 1 | . . . . . . 1 1 1 2 3 2 . 1 Corruption Purged 4 | . . . . . . . 1 . . . 3 . . Corruption Blocked . | . . . . . . . . . . . . . . Effects 41 | . . . . . . 6 1 6 15 7 4 . 2 Message Errors 9 | . . . . . . 1 . 2 2 3 1 . . Matter Fused 5 | . . . . . . 2 . . 2 . 1 . . Heat Flow Errors 5 | . . . . . . . . 1 2 1 . . 1 Energy Discharges 8 | . . . . . . 1 1 1 4 1 . . . Parts Rejected 1 | . . . . . . 1 . . . . . . . Data Loss (minor) 10 | . . . . . . 1 . 2 4 1 1 . 1 Data Loss (major) 1 | . . . . . . . . . 1 . . . . Misfires 1 | . . . . . . . . . . . 1 . . Weapon Failures 1 | . . . . . . . . . . 1 . . . Overload Shots 2 | . . . . . . 2 . . . . . . . Overflow Damage 759 | . . 4 31 . . 350 . 146 54 . 63 69 42 Projectiles 168 | . . . 19 . . 99 . 22 . . . 28 . Explosions 215 | . . 4 12 . . 182 . . 14 . . 3 . Melee 376 | . . . . . . 69 . 124 40 . 63 38 42 Knockbacks 14 | . 7 1 . . . . . . 3 . . 3 . Impact 1 | . . 1 . . . . . . . . . . . Kinetic 13 | . 7 . . . . . . . 3 . . 3 . Secondary . | . . . . . . . . . . . . . . Self-Inflicted Damage 69 | . 32 23 . . . . . . . . . . 14 Shots 2 | . 1 1 . . . . . . . . . . . Rammed 29 | . 6 20 . . . . . . 1 . . . 2 Targets Rammed 30 | . 6 21 . . . . . . 1 . . . 2 Kicked . | . . . . . . . . . . . . . . Crushed 1 | . . 1 . . . . . . . . . . . Highest Temperature 338 | . 177 210 315 18 . 84 28 254 338 242 117 72 276 Average Temperature 65 | . 45 76 81 18 . 30 13 66 76 71 55 17 50 Received Heat Transfer 1150 | . 420 90 129 . . 54 . 102 184 . 9 27 135 Effects 4 | . . . 2 . . . . . 2 . . . . Energy Bleed 3 | . . . 1 . . . . . 2 . . . . Interference 1 | . . . 1 . . . . . . . . . . Siege Activations . | . . . . . . . . . . . . . . Martial Activations . | . . . . . . . . . . . . . . Shielding Activations . | . . . . . . . . . . . . . . Robots Disrupted . | . . . . . . . . . . . . . . Combat Hostiles . | . . . . . . . . . . . . . . Robots Corrupted 9 | . . . . . . . . . 3 6 . . . Combat Hostiles 9 | . . . . . . . . . 3 6 . . . Parts Fried 14 | . . . . . . . . . 6 8 . . . Impact Corruptions . | . . . . . . . . . . . . . . Robots Melted 2 | . . . . . . 2 . . . . . . . Combat Hostiles 1 | . . . . . . 1 . . . . . . . Parts Melted 7 | . . . 2 . . 4 . . 1 . . . . Heat Transferred 4444 | 75 896 407 2516 . . . . 100 150 300 . . . Parts Sabotaged . | . . . . . . . . . . . . . . Parts Stolen . | . . . . . . . . . . . . . . Parts Stripped . | . . . . . . . . . . . . . . Power Chain Reactions 6 | . . . . . . . . 1 3 2 . . . Alert | -11 -10 -10 -10 -9 -9 -6 -6 -6 -6 -6 -6 -6 -5 ------- Run | Yrd Mat Min Sub Rec Scr Fac Was Fac Ext Cet Arc Hub Fac Maximum Alert Level 4 | . 1 . . . . 1 . 1 4 3 2 3 2 Low Security (%) 58 | 100 94 100 . 100 . 81 100 14 23 . 33 10 . Level 1 22 | . 5 . . . . 18 . 85 11 . 44 13 40 Level 2 11 | . . . . . . . . . 41 4 22 27 59 Level 3 6 | . . . . . . . . . 15 95 . 48 . Level 4 . | . . . . . . . . . 8 . . . . Level 5 . | . . . . . . . . . . . . . . High Security . | . . . . . . . . . . . . . . Max Security . | . . . . . . . . . . . . . . Peak Influence 1228 | 5 219 117 . 161 . 351 122 385 1228 889 509 895 474 Initial 677 | . . 70 . 81 . . 122 38 132 677 343 28 420 Average 231 | 1 120 34 . 102 . 95 89 284 509 793 280 627 386 Influence Increases 6724 | 5 630 302 300 121 . 766 33 704 1604 322 236 1108 593 Destroy 0b10 Robot/C 2820 | . 320 140 220 . . 340 . 340 780 160 80 400 40 Destroy 0b10 Robot/NC 340 | 5 60 40 . . . 70 . 25 70 10 15 30 15 Destroy Leader 470 | . 78 20 20 . . 72 . 88 76 . . 104 12 Allied During Kill 1155 | . . . . . . . . 126 510 123 95 301 . Successful Hack 227 | . 18 . . . . 51 . 49 14 . . 20 75 Select Force Hacks 310 | . 60 . . 120 . 30 . . . . . 100 . Disable Machine 270 | . 30 45 . . . 30 . 15 30 15 45 60 . Destroy Structure 382 | . 64 57 . 1 . 68 33 31 34 14 1 33 46 Partial Spotted 135 | . . . . . . . . 15 30 . . 15 75 Lose Combat Pursuer 615 | . . . 60 . . 105 . 15 60 . . 45 330 Influence Decreases 6501 | 5 447 393 223 268 22 415 329 489 664 673 1012 333 1228 Entered New Map 2197 | . . 113 48 88 22 . 229 17 138 533 516 55 438 Time Decay 3444 | 5 417 280 165 180 . 395 100 392 416 140 446 198 310 Search Patrol Dispatched 200 | . . . . . . . . . . . . . 200 Lost Part 220 | . 30 . 10 . . 10 . 10 10 . 10 10 130 Lost Ally 290 | . . . . . . 10 . 70 100 . 40 70 . Purge Threat 150 | . . . . . . . . . . . . . 150 Squads Dispatched 61 | . 5 . . . . 19 . 14 4 . . 12 7 Investigation 33 | . 4 . . . . 10 . 11 2 . . 4 2 Extermination 12 | . . . . . . 6 . 3 . . . 1 2 Reinforcement 15 | . 1 . . . . 3 . . 2 . . 7 2 Assault . | . . . . . . . . . . . . . . Garrison 1 | . . . . . . . . . . . . . 1 Intercept . | . . . . . . . . . . . . . . Searches Triggered 2 | . . . . . . . . . . . . . 2 Construction Impeded 3 | . . . . . . . . . 2 . . 1 . Haulers Reinforced 2 | . . . . . . 1 . . . . . 1 . Active Scanning Responses . | . . . . . . . . . . . . . . Cargo Convoy Interrupts . | . . . . . . . . . . . . . . Stealth | -11 -10 -10 -10 -9 -9 -6 -6 -6 -6 -6 -6 -6 -5 --------- Run | Yrd Mat Min Sub Rec Scr Fac Was Fac Ext Cet Arc Hub Fac Distress Signals 11 | . . 1 . . . 3 . . 4 . . 2 1 Communications Jammed . | . . . . . . . . . . . . . . Distress Signals . | . . . . . . . . . . . . . . Times Spotted 255 | . 22 9 27 . . 30 6 33 37 10 6 31 44 Peak Tracking Total 15 | . 3 2 6 . . 6 6 6 5 5 1 9 15 Tactical Retreats 25 | . . . 3 . . 4 . 1 4 . . 1 12 Traps | -11 -10 -10 -10 -9 -9 -6 -6 -6 -6 -6 -6 -6 -5 ------- Run | Yrd Mat Min Sub Rec Scr Fac Was Fac Ext Cet Arc Hub Fac Traps Triggered 9 | . . . 1 . . 4 . 2 1 . . . 1 Indirectly 1 | . . . . . . . . 1 . . . . . Trap Hack Attempts . | . . . . . . . . . . . . . . Triggered . | . . . . . . . . . . . . . . Disarmed . | . . . . . . . . . . . . . . Reprogrammed . | . . . . . . . . . . . . . . Reused . | . . . . . . . . . . . . . . Traps Extracted . | . . . . . . . . . . . . . . Installed . | . . . . . . . . . . . . . . Triggered . | . . . . . . . . . . . . . . Machines | -11 -10 -10 -10 -9 -9 -6 -6 -6 -6 -6 -6 -6 -5 ---------- Run | Yrd Mat Min Sub Rec Scr Fac Was Fac Ext Cet Arc Hub Fac Machines Disabled 21 | . 2 3 1 . . 2 . 1 4 1 3 4 . Max in Single Turn 2 | . 1 2 1 . . 1 . 1 2 1 1 1 . Garrison Access 2 | . . . . . . . . . . . . 1 1 Network Hub 2 | . . . . . . . . . . . . 2 . Machines Repaired . | . . . . . . . . . . . . . . Machines Dismantled . | . . . . . . . . . . . . . . Machines Sabotaged 2 | . . . . . . . . . . . . 2 . Overloaded Fab Kills . | . . . . . . . . . . . . . . Hacking | -11 -10 -10 -10 -9 -9 -6 -6 -6 -6 -6 -6 -6 -5 --------- Run | Yrd Mat Min Sub Rec Scr Fac Was Fac Ext Cet Arc Hub Fac Machines Accessed 75 | . 6 . 3 4 2 18 . 21 7 . . 5 9 Terminals 33 | . 3 . . . . 6 . 10 7 . . 4 3 Fabricators 5 | . . . . . . 2 . 2 . . . . 1 Repair Stations 4 | . 1 . . . . 1 . . . . . . 2 Recycling Units 18 | . 2 . . 4 . 5 . 6 . . . . 1 Scanalyzers 5 | . . . . . . 3 . 1 . . . . 1 Garrison Access 5 | . . . . . . 1 . 2 . . . 1 1 Total Hacks 198 | . 15 . 3 4 2 53 . 55 19 . . 9 38 Successful 105 | . 10 . 3 4 2 28 . 24 6 . . 6 22 Failed 92 | . 5 . . . . 25 . 31 13 . . 3 15 Catastrophic 17 | . 1 . . . . 4 . 6 3 . . . 3 Database Lockouts 1 | . . . . . . . . . . . . . 1 Manual 103 | . 8 . . 4 . 23 . 34 7 1 . 8 18 Terminals 90 | . 6 . . . . 16 . 30 19 . . 8 11 Fabricators 28 | . . . . . . 9 . 10 . . . . 9 Repair Stations 16 | . 7 . . . . 2 . . . . . . 7 Recycling Units 23 | . 2 . . 4 . 6 . 10 . . . . 1 Scanalyzers 29 | . . . . . . 19 . 1 . . . . 9 Garrison Access 7 | . . . . . . 1 . 4 . . . 1 1 Terminal Hacks 23 | . 2 . 3 . 2 1 . 5 4 . . . 6 Record 1 | . . . . . 1 . . . . . . . . Part Schematic 4 | . 1 . . . . . . 2 . . . . 1 Robot Analysis 1 | . 1 . . . . . . . . . . . . Open Door 3 | . . . 1 . . . . . 2 . . . . Branch Access Points 2 | . . . . . . . . 1 . . . . 1 Terminal Index 2 | . . . . . . . . 1 . . . . 1 Recycling Unit Index 1 | . . . . . . . . 1 . . . . . Unreport Threat 1 | . . . . . . . . . . . . . 1 Locate Traps 2 | . . . . . . . . . 1 . . . 1 Recall Investigation 1 | . . . . . . . . . 1 . . . . Hauler Manifests 1 | . . . . . . 1 . . . . . . . Zone Layout 1 | . . . . . . . . . . . . . 1 Proto ID Catalog 2 | . . . 1 . 1 . . . . . . . . Release Object 1 | . . . 1 . . . . . . . . . . Fabricator Hacks 11 | . . . . . . 3 . 6 . . . . 2 Network Status 2 | . . . . . . 1 . 1 . . . . . Load Schematic 4 | . . . . . . 1 . 2 . . . . 1 Build 5 | . . . . . . 1 . 3 . . . . 1 Repair Station Hacks 10 | . 6 . . . . 1 . . . . . . 3 Scan Component 6 | . 3 . . . . 1 . . . . . . 2 Repair 4 | . 3 . . . . . . . . . . . 1 Recycling Unit Hacks . | . . . . . . . . . . . . . . Scanalyzer 18 | . . . . . . 13 . . . . . . 5 Insert Component 3 | . . . . . . 2 . . . . . . 1 Analyze 6 | . . . . . . 5 . . . . . . 1 Retrieve Study 9 | . . . . . . 6 . . . . . . 3 Garrison Access Hacks 2 | . . . . . . . . . . . . 1 1 Seal Access 2 | . . . . . . . . . . . . 1 1 Unauthorized Hacks 41 | . 2 . . 4 . 10 . 13 2 . . 5 5 Terminals 18 | . . . . . . 4 . 5 2 . . 5 2 Track 1 | . . . . . . . . . . . . 1 . Assimilate 3 | . . . . . . 1 . 1 . . . 1 . Botnet 9 | . . . . . . 2 . 3 2 . . . 2 Operators 1 | . . . . . . . . 1 . . . . . Skim 1 | . . . . . . 1 . . . . . . . Sabotage 3 | . . . . . . . . . . . . 3 . Fabricators 4 | . . . . . . 1 . 2 . . . . 1 Prioritize 3 | . . . . . . . . 2 . . . . 1 Liberate 1 | . . . . . . 1 . . . . . . . Repair Stations 1 | . . . . . . . . . . . . . 1 Mechanics 1 | . . . . . . . . . . . . . 1 Recycling Units 17 | . 2 . . 4 . 4 . 6 . . . . 1 Tunnel 6 | . 2 . . 4 . . . . . . . . . Fedlink 11 | . . . . . . 4 . 6 . . . . 1 Scanalyzers 1 | . . . . . . 1 . . . . . . . Extract 1 | . . . . . . 1 . . . . . . . Garrison Access . | . . . . . . . . . . . . . . Data Cores Recovered 2 | . . . . . . . . 1 . . . . 1 Used 1 | . . . . . . . . 1 . . . . . Hacking Detections 37 | . 3 . . . . 10 . 12 7 . . 1 4 Full Trace Events 14 | . 2 . . . . 5 . 4 2 . . . 1 Feedback Events 2 | . . . . . . . . 1 1 . . . . Corruption 2 | . . . . . . . . 1 1 . . . . Feedback Blocked 1 | . . . . . . 1 . . . . . . . Robot Schematics Acquired . | . . . . . . . . . . . . . . Robots Built . | . . . . . . . . . . . . . . Authchips . | . . . . . . . . . . . . . . Time . | . . . . . . . . . . . . . . Total Robot Build Rating . | . . . . . . . . . . . . . . Part Schematics Acquired 44 | . 1 . . . . 22 2 14 2 1 . . 2 Parts Built 8 | . . . . . . 1 . 6 . . . . 1 Authchips . | . . . . . . . . . . . . . . Time 240 | . . . . . . 42 . 169 . . . . 29 Total Part Build Rating 51 | . . . . . . 4 . 40 . . . . 7 Part Studies Acquired 9 | . . . . . . 6 . . . . . . 3 Parts Repaired 4 | . 3 . . . . . . . . . . . 1 Time 98 | . 78 . . . . . . . . . . . 20 Parts Recycled . | . . . . . . . . . . . . . . Recycled Matter . | . . . . . . . . . . . . . . Retrieved Matter . | . . . . . . . . . . . . . . Retrieved Components . | . . . . . . . . . . . . . . Parts Scanalyzed 3 | . . . . . . 2 . . . . . . 1 Part Schematics Acquired 3 | . . . . . . 2 . . . . . . 1 Parts Damaged . | . . . . . . . . . . . . . . Bothacking | -11 -10 -10 -10 -9 -9 -6 -6 -6 -6 -6 -6 -6 -5 ------------ Run | Yrd Mat Min Sub Rec Scr Fac Was Fac Ext Cet Arc Hub Fac Used RIF Installer . | . . . . . . . . . . . . . . Robots Hacked 2 | . . . . . . 2 . . . . . . . Non-combat 2 | . . . . . . 2 . . . . . . . Combat . | . . . . . . . . . . . . . . Robot Hacks Applied 2 | . . . . . . 2 . . . . . . . find_chute 2 | . . . . . . 2 . . . . . . . Relay Couplers Released . | . . . . . . . . . . . . . . Fabnet Peak Effective % . | . . . . . . . . . . . . . . Robots Rewired 10 | . . . . . . . . . 10 . . . . Allies Hacked . | . . . . . . . . . . . . . . Hacks Repelled . | . . . . . . . . . . . . . . Allies | -11 -10 -10 -10 -9 -9 -6 -6 -6 -6 -6 -6 -6 -5 -------- Run | Yrd Mat Min Sub Rec Scr Fac Was Fac Ext Cet Arc Hub Fac Total Allies 43 | . . 1 . . . 1 19 1 15 5 . 1 . Largest Group 19 | . . 1 1 . . 1 19 5 9 11 11 8 . Highest-Rated Group 790 | . . 31 31 . . 26 684 125 389 790 790 504 . Highest-Rated Ally 159 | . . 31 31 . . 26 50 26 159 159 159 96 . Initial UFD Resources 56 | . . . . . . 23 41 41 53 53 53 53 56 Total Orders 5 | . . . . . . . . 2 . 2 . 1 . STAY 3 | . . . . . . . . 1 . 1 . 1 . FOLLOW 2 | . . . . . . . . 1 . 1 . . . Ally Attacks 357 | . . 1 . . . . 79 68 125 4 17 63 . Total Damage 11018 | . . 22 . . . . 3376 965 3503 149 504 2499 . Kills 57 | . . . . . . . 5 9 21 . 2 20 . Allies Corrupted 1 | . . . . . . . . . 1 . . . . Allies Melted 1 | . . . . . . . . . . . . 1 . Intel | -11 -10 -10 -10 -9 -9 -6 -6 -6 -6 -6 -6 -6 -5 ------- Run | Yrd Mat Min Sub Rec Scr Fac Was Fac Ext Cet Arc Hub Fac Active Infowar (turns) 9737 | 13 1318 709 . . 569 2482 201 928 1018 291 1107 413 688 Optics 7697 | . . . . . 569 2482 201 928 1018 291 1107 413 688 Sensors 6026 | . . . . . . 2260 144 831 695 169 964 354 609 Terrain 561 | . . . . . . 561 . . . . . . . Structural 83 | . . . . . . 11 . 2 . . . 2 68 Seismic 2044 | 13 1318 709 . . . 4 . . . . . . . Robot Analysis Total 1 | . 1 . . . . . . . . . . . . Derelict Logs Recovered 6 | . . 1 2 . 3 . . . . . . . . Drone Launches . | . . . . . . . . . . . . . . Drone Recoveries . | . . . . . . . . . . . . . . Exploration | -11 -10 -10 -10 -9 -9 -6 -6 -6 -6 -6 -6 -6 -5 ------------- Run | Yrd Mat Min Sub Rec Scr Fac Was Fac Ext Cet Arc Hub Fac Turns Passed 17178 | 42 1318 1255 4747 362 2326 2482 201 928 1018 291 1107 413 688 Spaces Moved 11828 | 10 556 585 1842 239 1661 2593 261 1490 684 328 77 482 1020 Core 12 | . . . . . . . . . . . . 12 . Treads 3592 | 6 556 585 1682 . 763 . . . . . . . . Legs 4 | 4 . . . . . . . . . . . . . Wheels 2865 | . . . 160 239 898 1568 . . . . . . . Hover 5355 | . . . . . . 1025 261 1490 684 328 77 470 1020 Flight . | . . . . . . . . . . . . . . Fastest Speed 33 | 120 160 160 120 150 120 36 40 40 43 43 43 33 36 Average Speed 106 | 144 161 160 227 150 139 72 40 41 56 44 65 56 46 Slowest Speed 600 | 160 240 160 260 150 260 105 40 43 98 98 98 600 160 Overloaded Moves 109 | . . . . . . 70 . . . . . 23 16 Propulsion Burnouts . | . . . . . . . . . . . . . . Robots Hopped . | . . . . . . . . . . . . . . Potential Cave-ins 8 | . . 2 . . . . . . . . . . 6 Cave-ins Triggered . | . . . . . . . . . . . . . . Exploration Rate (%) 61 | 2 52 93 88 47 84 58 88 41 73 75 81 39 39 Regions Visited 13 Branch Regions 8 Pre-discovered Areas 7 | . 2 . . 4 . 1 . . . . . . . Known Exits Taken 5 | . . . . . . . . 1 1 1 1 1 . Unknown Exits Taken 6 | 1 1 1 1 1 1 . . . . . . . . Scrap Searched 15 | . . 1 7 . 7 . . . . . . . . Spaces Dug 75 | . . . 3 . . 31 . 23 1 . . 6 11 Terrain Destroyed 336 | . 63 86 15 1 . 73 3 30 13 18 . 6 28 Melee 63 | . . . . . . 31 . 21 1 . . 6 4 Projectile 52 | . . . 12 1 . 4 3 5 3 . . . 24 AOE 221 | . 63 86 3 . . 38 . 4 9 18 . . . Terrain Rammed . | . . . . . . . . . . . . . . Walls Destroyed . | . . . . . . . . . . . . . . Machines Disabled . | . . . . . . . . . . . . . . Actions | -11 -10 -10 -10 -9 -9 -6 -6 -6 -6 -6 -6 -6 -5 --------- Run | Yrd Mat Min Sub Rec Scr Fac Was Fac Ext Cet Arc Hub Fac Total 15568 | 22 847 837 2270 242 1675 3092 345 1733 1175 461 1118 567 1184 Wait 2529 | . 183 181 293 . . 270 60 119 192 99 1018 27 87 Move 11816 | 9 555 584 1841 238 1660 2593 260 1489 683 327 76 481 1020 Hop . | . . . . . . . . . . . . . . Pick Up 96 | . 11 4 16 1 8 24 3 12 4 3 2 1 7 Fast Attach 28 | 1 3 1 3 . . 9 1 3 1 1 1 1 3 Attach 43 | 2 1 1 3 . . 11 1 2 5 4 5 1 7 Detach 14 | . . . . . . 1 . 1 4 5 1 1 1 Swap 151 | . 7 6 15 1 3 40 5 25 19 9 2 9 10 Drop 94 | 2 . 3 24 1 4 21 3 15 4 6 3 . 8 Fire 416 | 8 81 36 75 1 . 24 12 22 91 7 5 23 31 Melee 170 | . . . . . . 74 . 41 19 . 5 23 8 Ram 3 | . . . . . . . . . 1 . . . 2 Kick . | . . . . . . . . . . . . . . Crush 27 | . 6 21 . . . . . . . . . . . Escape Stasis 21 | . . . . . . 21 . . . . . . . Rewire 152 | . . . . . . . . . 152 . . . . Trap . | . . . . . . . . . . . . . . Miscellaneous 8 | . . . . . . 4 . 4 . . . . . Route ------- -11/Scrapyard -10/Materials (discovered 2 exits: [*Mat] / [*Min]) -10/Mines (discovered 4 exits: [*Mat x2] / [*Exi] / *Sub) -10/Subcaves (discovered 2 exits: [*Mat] / *Rec) -9/Recycling -9/Scraptown (discovered 2 exits: *Fac x2) -6/Factory (discovered 6 exits: *Fac x3 / *Low x2 / *Ext) -6/Waste -6/Factory (discovered 5 exits: *Fac / Low x2 / *Ext x2) -6/Extension (discovered 2 exits: *Fac / *Cet) -6/Cetus (discovered 2 exits: *Fac / *Arc) -6/Archives (discovered 3 exits: *Fac / *Hub x2) -6/Hub_04(d) (discovered 4 exits: *Fac x4) -5/Factory (discovered 3 exits: [Fac] / *Upp x2) History --------- Turn | Location | Event 25 | -11/Scrapyard | Discovered new exit (range 3) 43 | -11/Scrapyard | Entered Materials 315 | -10/Materials | Build established: Mutant 451 | -10/Materials | Discovered new exit (range 9) 602 | -10/Materials | Repaired Grenade Launcher 629 | -10/Materials | Repaired Assault Rifle 656 | -10/Materials | Repaired Lgt. Treads 727 | -10/Materials | Lost 3 parts (1p1n1w) 1036 | -10/Materials | Build established: Scavenger-Mutant 1144 | -10/Materials | Discovered new exit (range 16) 1361 | -10/Materials | Entered Mines 1425 | -10/Mines | Learned Materials trap positions 1432 | -10/Mines | Met a Derelict bent on vengeance 1438 | -10/Mines | Found a Scrap Suit stashed away for nefarious purposes 1570 | -10/Mines | Deemed a non-threat by the Exiles lab entrance 1572 | -10/Mines | Discovered new exit (range 5) 1610 | -10/Mines | Excavation squad dispatched 1610 | -10/Mines | A large section of the Mines collapsed 2187 | -10/Mines | Core integrity fell below 50% 2261 | -10/Mines | Discovered new exit (range 8) 2357 | -10/Mines | Discovered new exit (range 9) 2442 | -10/Mines | Received a Mining Laser from a helpful Derelict 2597 | -10/Mines | Discovered new exit (range 15) 2616 | -10/Mines | Entered Subcaves 2616 | -10/Subcaves | Accompanied by 1 ally 2781 | -10/Subcaves | Learned Materials emergency access door positions 2847 | -10/Subcaves | Build established: Mutant 2854 | -10/Subcaves | Visited 4L-MR0's lab 3521 | -10/Subcaves | A swath of the cavern ceiling suddenly collapsed 3571 | -10/Subcaves | Disturbed a concealed Subdweller 3665 | -10/Subcaves | Disturbed a concealed Subdweller 4064 | -10/Subcaves | Build established: Derelict-Mutant 4261 | -10/Subcaves | Learned Materials trap positions 4664 | -10/Subcaves | Found Powered Cannon 5995 | -10/Subcaves | Shifting Twisted Machinery released Sub. Laser 6001 | -10/Subcaves | Shifting Twisted Machinery released Battle Cannon 6368 | -10/Subcaves | A swath of the cavern ceiling suddenly collapsed 6573 | -10/Subcaves | Shifting Twisted Machinery released Flamer 6575 | -10/Subcaves | Shifting Twisted Machinery released Mak. Power Source 6724 | -10/Subcaves | Discovered new exit (range 12) 6836 | -10/Subcaves | Core integrity fell below 20% 7190 | -10/Subcaves | Attached Powered Cannon, gained temporary slot: Power 7191 | -10/Subcaves | Found SUBCON Basin 7355 | -10/Subcaves | Discovered new exit (range 6) 7363 | -10/Subcaves | Entered Recycling 7383 | -9/Recycling | Build established: Mutant 7568 | -9/Recycling | Scanned before Scraplab entrance 7589 | -9/Recycling | Entered Scraplab 7724 | -9/Recycling | Discovered new exit (range 2) 7725 | -9/Recycling | Entered Scraptown 7910 | -9/Scraptown | Discovered new exit (range 11) 7967 | -9/Scraptown | Scanned Subdweller tech in exchange for log data 7971 | -9/Scraptown | Learned Factory emergency access door positions 7972 | -9/Scraptown | Learned Research emergency access door positions 8021 | -9/Scraptown | Visited Cyclists 8038 | -9/Scraptown | Visited UFD Registry 8038 | -9/Scraptown | Registered with UFD as "Nanosourcer" 8061 | -9/Scraptown | Entered Cyclist Reading Room 8153 | -9/Scraptown | Visited Fellowship of the Rings 8202 | -9/Scraptown | Visited Bundlers 8268 | -9/Scraptown | Visited Cave Peace 8478 | -9/Scraptown | Visited Shadow of the Wyrm 8537 | -9/Scraptown | Visited Research Penetration Think Tank 8567 | -9/Scraptown | Visited Scrapoid Research Area 8586 | -9/Scraptown | Visited Abandonware Association 8598 | -9/Scraptown | Learned abandonware demo "REPAIR.EXE" 8601 | -9/Scraptown | Learned abandonware demo "OVRCLOCK.EXE" 8639 | -9/Scraptown | Visited Science Guys 8685 | -9/Scraptown | Visited Scrapoid Pod Storage 8700 | -9/Scraptown | Visited Observation Area 8765 | -9/Scraptown | Visited Junk Cannon Lab 8798 | -9/Scraptown | Visited Curators Association 8846 | -9/Scraptown | Visited The Evicted 9078 | -9/Scraptown | Guru changed UFD alias to "Phaseshaft" 9859 | -9/Scraptown | Discovered new exit (range 5) 9967 | -9/Scraptown | Met Optimus 9967 | -9/Scraptown | Accepted into 0bPrime 10051 | -9/Scraptown | Entered Factory 10051 | -6/Factory | Evolved 8 slots: Propulsion x3, Utility x4, Weapon x1 10320 | -6/Factory | Tech Extrapolator generated special schematic: Deep Structural Scanner 10390 | -6/Factory | Build established: Assassin 10568 | -6/Factory | Discovered new exit (range 18) 10580 | -6/Factory | Discovered new exit (range 17) 10593 | -6/Factory | Identified exit to Lower Caves 10679 | -6/Factory | Found Prototype Launcher 10679 | -6/Factory | Identified Scatter Rocket Array 10824 | -6/Factory | Tech Extrapolator generated special schematic: Machine Rigger 10974 | -6/Factory | Discovered new exit (range 19) 10990 | -6/Factory | Identified exit to Factory 11058 | -6/Factory | Fabricated Deep Structural Scanner? 11551 | -6/Factory | Loaded intel: 8 recycling unit locations 11823 | -6/Factory | Discovered exit to Factory (range 18) 11970 | -6/Factory | Learned location of Protoforge (-2) 11974 | -6/Factory | Discovered exit to Lower Caves (range 13) 12266 | -6/Factory | Discovered exit to Factory (range 7) 12412 | -6/Factory | Build established: Scout 12525 | -6/Factory | Tech Extrapolator generated special schematic: Energy Deflector 12533 | -6/Factory | Sucked down chute 12533 | -6/Factory | Entered Waste 12544 | -6/Waste | Spotted C-40 Crusher 12551 | -6/Waste | Spotted C-40 Crusher 12551 | -6/Waste | Spotted C-40 Crusher 12555 | -6/Waste | Spotted C-40 Crusher 12590 | -6/Waste | Spotted C-40 Crusher 12590 | -6/Waste | Spotted C-40 Crusher 12623 | -6/Waste | Found Prototype Device 12623 | -6/Waste | Identified Exp. Terrain Scanner 12653 | -6/Waste | Warlord forces began an assault 12661 | -6/Waste | Destroyed C-40 Crusher 12663 | -6/Waste | Allies destroyed C-40 Crusher 12666 | -6/Waste | Allies destroyed C-40 Crusher 12668 | -6/Waste | Allies destroyed C-40 Crusher 12670 | -6/Waste | Allies destroyed C-40 Crusher 12673 | -6/Waste | Allies destroyed C-40 Crusher 12730 | -6/Waste | Discovered new exit (range 10) 12733 | -6/Waste | Identified exit to Factory 12734 | -6/Waste | Entered Factory 12734 | -6/Factory | Accompanied by 5 allies 12763 | -6/Factory | Discovered exit to Factory (range 13) 12822 | -6/Factory | Allied Derelicts emerged from ambush trap array 12838 | -6/Factory | Spotted B-75 Beast 12843 | -6/Factory | Destroyed B-75 Beast 12919 | -6/Factory | Loaded intel: 8 recycling unit locations 12968 | -6/Factory | Build established: Scientist-Scout 13394 | -6/Factory | Identified exit to Extension 13478 | -6/Factory | Fabricated Adv. Sensor Array (x2) 13557 | -6/Factory | Fabricated Linear Accelerator (x2) 13619 | -6/Factory | Fabricated Hyp. Mass Driver? 13662 | -6/Factory | Entered Extension 13736 | -6/Extension | Build established: Scout 13773 | -6/Extension | Rescued a captive Derelict 13774 | -6/Extension | Rescued a captive Derelict 13784 | -6/Extension | Rescued a captive Derelict 13784 | -6/Extension | Rescued a captive Derelict 13986 | -6/Extension | Rescued A7 13992 | -6/Extension | Spotted B-75 Beast 14262 | -6/Extension | Disrupted transfer network 14282 | -6/Extension | Allies destroyed B-75 Beast 14291 | -6/Extension | Spotted B-75 Beast 14315 | -6/Extension | Allies destroyed B-75 Beast 14625 | -6/Extension | Discovered new exit (range 22) 14626 | -6/Extension | Discovered exit to Factory (range 20) 14634 | -6/Extension | Identified exit to Cetus 14680 | -6/Extension | Entered Cetus 14680 | -6/Cetus | Accompanied by 6 allies (A7) 14685 | -6/Cetus | Acquired a Cetus Manufacturing Module code from A7 14688 | -6/Cetus | Spotted Cetus Guard 14688 | -6/Cetus | Spotted Cetus Guard 14688 | -6/Cetus | Spotted Cetus Guard 14688 | -6/Cetus | Spotted Cetus Guard 14694 | -6/Cetus | Destroyed Cetus Guard 14695 | -6/Cetus | Destroyed Cetus Guard 14697 | -6/Cetus | Destroyed Cetus Guard 14698 | -6/Cetus | Destroyed Cetus Guard 14765 | -6/Cetus | Door terminal overloaded 14771 | -6/Cetus | Escorted A7 to Cetus Mainframe 14800 | -6/Cetus | Started Cetus Manufacturing Module 14802 | -6/Cetus | Discovered new exit (range 22) 14825 | -6/Cetus | Manufactured an Enhanced Grunt 14827 | -6/Cetus | Build established: Commander-Scout 14850 | -6/Cetus | Manufactured an Enhanced Grunt 14875 | -6/Cetus | Manufactured an Enhanced Grunt 14894 | -6/Cetus | Spotted Cetus Guard 14894 | -6/Cetus | Spotted Cetus Guard 14894 | -6/Cetus | Spotted Cetus Guard 14894 | -6/Cetus | Spotted Cetus Guard 14895 | -6/Cetus | Discovered exit to Factory (range 21) 14899 | -6/Cetus | Destroyed Cetus Guard 14900 | -6/Cetus | Manufactured an Enhanced Grunt 14900 | -6/Cetus | Destroyed Cetus Guard 14902 | -6/Cetus | Destroyed Cetus Guard 14905 | -6/Cetus | Destroyed Cetus Guard 14912 | -6/Cetus | Met Revision 17 14925 | -6/Cetus | Manufactured an Enhanced Grunt 14931 | -6/Cetus | Identified exit to Archives 14971 | -6/Cetus | Entered Archives 14971 | -6/Archives | Accompanied by 11 allies (A7) 14976 | -6/Archives | Received a hacking code to weaken MAIN.C 15011 | -6/Archives | Discovered new exit (range 22) 15032 | -6/Archives | Discovered exit to Factory (range 16) 15753 | -6/Archives | Discovered new exit (range 20) 15761 | -6/Archives | Identified exit to Hub_04(d) 16078 | -6/Archives | Entered Hub_04(d) 16078 | -6/Hub_04(d) | Accompanied by 8 allies 16143 | -6/Hub_04(d) | Discovered exit to Factory (range 18) 16210 | -6/Hub_04(d) | Discovered exit to Factory (range 3) 16221 | -6/Hub_04(d) | Discovered exit to Factory (range 18) 16233 | -6/Hub_04(d) | Lost 6 allies 16255 | -6/Hub_04(d) | Discovered exit to Factory (range 22) 16421 | -6/Hub_04(d) | Network Hub disabled 16436 | -6/Hub_04(d) | Network Hub disabled 16491 | -6/Hub_04(d) | Entered Factory 16491 | -5/Factory | Evolved 2 slots: Propulsion x1, Utility x1 16671 | -5/Factory | Garrison activated, responded to threat 16743 | -5/Factory | Discovered new exit (range 10) 16747 | -5/Factory | Identified exit to Upper Caves 16761 | -5/Factory | Central database locked down 16770 | -5/Factory | Build established: Hacker-Scout 16791 | -5/Factory | Search patrols dispatched 16861 | -5/Factory | Fabricated Mak. Sensor Array (x1) 16946 | -5/Factory | Loaded intel: 8 recycling unit locations 17008 | -5/Factory | Watched by a mysterious "MATRIX" hacker 17009 | -5/Factory | Discovered new exit (range 14) 17071 | -5/Factory | Repaired Hyp. Mass Driver+ 17091 | -5/Factory | Search patrols dispatched 17146 | -5/Factory | Spotted B-75 Beast 17179 | -5/Factory | Self-destructed Last Messages --------------- 17151_ Cld. Aerolev Unit destroyed. 17152_ Mic. Fission Core+ destroyed. 17155_ Antigrav System destroyed. 17158_ Mak. Sensor Array destroyed. 17159_ Penetrated by Slug. 17159_ Imp. System Shield destroyed. 17161_ Acquired Fission Core+. 17161_ U-05 Engineer builds a Wall. 17162_ Penetrated by Slug. 17163_ Imp. Gravmag System+ destroyed. 17164_ U-05 Engineer builds a Wall. 17165_ Hyp. Mass Driver+ destroyed. 17165_ Linear Accelerator destroyed. 17165_ Slug penetrates W-25 Informer. 17165_ Penetrated by Slug. 17172_ Cmb. Gravmag System destroyed. 17176_ Penetrated by Slug. 17178_ Imp. Gravmag System+ destroyed. 17179_ Slug penetrates Wall. 17179_ Imp. Gravmag System+ destroyed. Map ----- +----------------------------------------------------+ | ????????????????????????????????????????#### | | ????????????????????????????????????????#### | | ????????????????????????????????????????#### | | ????????????????????????????????????????#### | | ????????????????????????????????????????#### # | | ????????????????????????????????????????#### # | | ????????????????????????????????##+##?#?#### # | | ???????????????????????????????? ? # # | | ????????????????????????????????? # # | | ?????????????????????????????????? # # | | ?????????????????????????????????? # # | | ??????????????????????????????????""" "" # # | | ??????????????????????????????# """ "" # # | | ??????????????????????????????# """ "" # # | | ????????"Y"???????????????????# | Y" " # | | ????????"""?????????????????????? """ "" # # | | ??????????????????????????????# """ "" + + | | ??????????????????????????????# """ "" " # | | ??????????????????????????????# " # | | ???????????????############################# # | | ???????????????# # # | | ???????????????# # # | | ???????????????# # * # | | ???????????????# ! ;u BB ** | | ???????????????# # p BB ** | | ???????????????# @ ; p ######## # | | ???????????????###########s###s #??????# # | | ?????? ss +??????# " # | | ????????????????########## ##### #??????# " # | | ?????????????????????????# #???# #??????# " # | | ?????????????????????????# #???# #??????# " + | | ?????????????????????????#+#???#+#??????# " # | | ????????????????????????????????????????# " " # | | ????????????????????????????????????????# "" " # | | ???????????????????????????????????????? G " + | | ???????????????????????????????????????? "" " # | | ???????????????????????????????????????? " # | | ??????????????????????????????????????? ! # | | ??????????????????????????????????????? # | | ??????????????????????????????????????? ####+##? | | ?????????????????????????????????????? ???? ??? | | ?????????????????????????????????????? ???????? | | ??????????????????????????????????????? ???????? | | ??????????????????????????????????????? ???????? | | ???????????????????????????????????????? ???????? | | ?????????????????????????????????????????????????? | | ?????????????????????????????????????????????????? | | ?????????????????????????????????????????????????? | | ?????????????????????????????????????????????????? | | ?????????????????????????????????????????????????? | +----------------------------------------------------+ Best States ------------- Heat Dissipation 40 Energy Generation 25 Energy Capacity 310 Matter Stores 300 Matter Capacity 300 Sight Range 22 Robot Scan Range 19 Terrain Scan Range 20 Terrain Scan Density 10 Armor Coverage 225 Evasion (%) 58 Recoil Reduction 2 Offensive Hacking 12 Defensive Hacking 12 Item Schematics ----------------- Hcp. Storage Unit | -10/Materials | Hacked Deep Structural Scanner | -6/Factory | Extrapolated Mak. Power Source | -6/Factory | Extrapolated Mak. Terrain Scanner | -6/Factory | Extrapolated 0b10 Decoder Chip [Skirmisher] | -6/Factory | Extrapolated Machine Rigger | -6/Factory | Extrapolated Bore Cannon | -6/Factory | Extrapolated Multitool | -6/Factory | Extrapolated Ripper | -6/Factory | Extrapolated Mak. Spear | -6/Factory | Extrapolated Mak. System Shield | -6/Factory | Extrapolated Beamcaster | -6/Factory | Extrapolated Slug Cannon | -6/Factory | Extrapolated Mak. Light Armor Plating | -6/Factory | Extrapolated System Restoration Module | -6/Factory | Scanalyzed Adv. Targeting Computer | -6/Factory | Scanalyzed Mak. ECM Suite | -6/Factory | Extrapolated Mak. Targeting Computer | -6/Factory | Extrapolated Energy Deflector | -6/Factory | Extrapolated Greatsword | -6/Factory | Extracted Arc Projector | -6/Factory | Extracted Imp. Titanium Leg | -6/Factory | Extracted Shield Generator | -6/Factory | Extracted Mak. Coolant Network | -6/Waste | Extrapolated Mak. Medium Armor Plating | -6/Waste | Extrapolated Tactical Coordination Suite | -6/Factory | Extrapolated 0b10 Decoder Chip [Generic] | -6/Factory | Extrapolated 0b10 Decoder Chip [Scout] | -6/Factory | Extrapolated Mak. Core Shielding | -6/Factory | Extrapolated Mak. Heavy Armor Plating | -6/Factory | Extrapolated Mak. Kinetic Plating | -6/Factory | Extrapolated Mak. Thermal Plating | -6/Factory | Extrapolated Mak. Ablative Armor | -6/Factory | Extrapolated Mak. System Restoration Module | -6/Factory | Extrapolated Hyp. Mass Driver | -6/Factory | Hacked Adv. Sensor Array | -6/Factory | Hacked Mak. Laser | -6/Factory | Extrapolated Hvy. Beamcaster | -6/Factory | Extrapolated Mak. Axe | -6/Factory | Extrapolated Hvy. Battle Rifle | -6/Extension | Extrapolated Mak. Hacking Suite | -6/Extension | Extrapolated Mak. Sensor Array | -6/Cetus | Extrapolated Imp. Powered Armor | -5/Factory | Hacked Centrium Medium Armor Plating | -5/Factory | Scanalyzed Robot Schematics ------------------ None Fabricated ------------ Deep Structural Scanner | x1 | -6/Factory Adv. Sensor Array | x2 | -6/Factory Linear Accelerator | x2 | -6/Factory | Preloaded Hyp. Mass Driver | x2 | -6/Factory Mak. Sensor Array | x1 | -5/Factory Repaired ---------- Grenade Launcher | 5% | -10/Materials Assault Rifle | 14% | -10/Materials Lgt. Treads | 25% | -10/Materials Hyp. Mass Driver | 15% | -5/Factory Studied --------- Magnetic Acceleration Cannon | -6/Factory | Hacked Imp. Gravmag System | -6/Factory | Hacked Imp. Proton Missile Launcher | -6/Factory | Hacked Fission Core | -6/Factory | Hacked Gravmag System | -6/Factory | Hacked Lgt. Nuclear Core | -6/Factory | Hacked Gravmag Array | -5/Factory | Hacked Hyp. Mass Driver | -5/Factory | Hacked Mic. Fission Core | -5/Factory | Hacked Alien Tech Used ----------------- None Achievements -------------- None Challenges ------------ None Game ------ Seed AntigravRelayMapper Manual? 0 Play Time 02:17:13 Cumulative 623.9 hours Start 2026.07.31 @ 04:57:05 End 2026.08.01 @ 07:20:44 Sessions 7 Manual Loads 0 Difficulty Rogue Special Mode None Game No. 556 Rogue 520 Adventurer 36 Explorer 0 Win Type - Total 8 Types 2/2/0/1/1/0/0/2/0/0 Lore% 84 Gallery% 74 Achievement% 67 Wizard Run 0 Options --------- Layout 2 ASCII 0 Keyboard 0 Movement Numpad Keybinds 0 Fullscreen 1 Font 48/Smallcaps Map View 50x44 Zoom Use 0% Tactical HUD 1 Map Filters NONE Filters NONE Steam 1 RUN: c66a7154-a5b9-4512-83d3-9ac25d60505f